bitfinex/quotes_BTCUSD_20220202
["timestamp","ask_amount","ask_price","bid_price","bid_amount"]
[1643821570990,1.24112817,37398.0,37393.0,0.133722]
[1643821571296,1.24112817,37398.0,37390.0,0.133732]
[1643821571690,1.24112817,37398.0,37391.0,0.066869]
[1643821571890,1.6034089,37398.0,37392.0,0.066868]
[1643821572132,0.33978084,37397.0,37392.0,0.06729796]
[1643821572530,0.61858028,37397.0,37392.0,0.06729796]
[1643821572732,0.76858028,37397.0,37392.0,0.00042996]
[1643821573032,0.76858028,37397.0,37388.0,0.02094753]
[1643821573033,0.33978084,37394.0,37388.0,0.02094753]
[1643821573231,0.38978084,37394.0,37381.0,0.633742]
[1643821573431,0.38978084,37394.0,37393.0,0.00042996]
[1643821573632,0.74378184,37394.0,37393.0,0.00042996]
[1643821574034,0.45,37394.0,37393.0,0.00042996]
[1643821574431,0.45,37394.0,37392.0,0.00042997]
[1643821574631,0.73973958,37394.0,37392.0,0.00042997]
[1643821575634,0.28067484,37393.0,37391.0,0.00043558]
[1643821575887,1.154001,37392.0,37391.0,0.00043558]
[1643821576288,1.204001,37392.0,37391.0,0.00043558]
[1643821576687,0.06688212,37391.0,37387.0,0.02024032]
[1643821576887,0.75803143,37388.0,37387.0,0.02024032]
[1643821577087,0.06688212,37391.0,37387.0,0.02024032]
[1643821577687,0.27234967,37391.0,37387.0,0.02024032]
[1643821577886,0.27817063,37390.0,37387.0,0.02024032]
[1643821578287,0.06688212,37391.0,37384.0,0.200632]
[1643821578488,0.32502261,37391.0,37385.0,0.09246957]
[1643821578688,0.32983465,37392.0,37386.0,0.13375]
[1643821578889,0.54136933,37392.0,37386.0,0.37260959]
[1643821579094,0.32983465,37392.0,37386.0,0.37260959]
[1643821579290,0.00014591,37392.0,37387.0,0.00043523]
[1643821580348,0.00014591,37392.0,37387.0,0.21360352]
[1643821580548,0.00014591,37392.0,37388.0,0.00043523]
[1643821580745,0.28082075,37392.0,37388.0,0.00043523]
[1643821580948,0.00014591,37392.0,37388.0,0.00043523]
[1643821581145,0.6497771,37393.0,37388.0,0.00043523]
[1643821581546,0.6497771,37393.0,37386.0,0.13375]
[1643821582045,0.6497771,37393.0,37389.0,0.00043522]
[1643821582447,0.38778126,37393.0,37389.0,0.00043522]
[1643821582845,0.38778126,37393.0,37388.0,0.133748]
[1643821583046,0.24883454,37392.0,37388.0,0.133748]
[1643821583389,0.47993606,37392.0,37389.0,0.00043416]
[1643821583590,0.25738054,37392.0,37389.0,0.00043416]
[1643821583788,0.33529538,37393.0,37389.0,0.00043416]
[1643821583991,0.33529538,37393.0,37388.0,0.066874]
[1643821584189,0.33529538,37393.0,37389.0,0.00043416]
[1643821584589,0.59705277,37393.0,37389.0,0.00043416]
[1643821584791,0.59205277,37393.0,37389.0,0.00043416]
[1643821585191,0.59205277,37393.0,37387.0,0.066876]
[1643821585392,0.59205277,37393.0,37390.0,0.09153248]
[1643821585694,0.59205277,37393.0,37389.0,0.00043416]
[1643821585695,0.42087844,37392.0,37389.0,0.00043416]
[1643821585890,0.06687744,37392.0,37389.0,0.00020021]
[1643821586491,0.06687744,37392.0,37386.0,0.066878]
[1643821586893,0.06687744,37392.0,37387.0,0.08542986]
[1643821588138,0.06637744,37392.0,37387.0,0.08542986]
[1643821588440,0.045,37393.0,37390.0,0.31293751]
[1643821588641,0.26382068,37397.0,37390.0,0.31293751]
[1643821588642,0.13007088,37397.0,37390.0,0.31293751]
[1643821588843,0.01397088,37397.0,37390.0,0.31293751]
[1643821589041,0.33599484,37399.0,37390.0,0.31293751]
[1643821589240,0.00018015,37398.0,37390.0,0.31293751]
[1643821589443,0.54732366,37398.0,37391.0,0.26274232]
[1643821589640,0.06686896,37397.0,37394.0,0.07762831]
[1643821589840,0.80224,37396.0,37388.0,0.133734]
[1643821590243,0.85224,37396.0,37388.0,0.133734]
[1643821590642,0.85224,37396.0,37390.0,0.01945212]
[1643821590890,0.85224,37396.0,37390.0,0.06687]
[1643821591690,0.85224,37396.0,37393.0,0.07931266]
[1643821592694,0.80224,37396.0,37393.0,0.07931266]
[1643821592996,0.80224,37396.0,37393.0,0.31218638]
[1643821593191,0.80224,37396.0,37394.0,0.049858]
[1643821593391,0.80224,37396.0,37394.0,0.066858]
[1643821594092,0.80224,37396.0,37395.0,0.066858]
[1643821594937,0.85224,37396.0,37395.0,0.066858]
[1643821595737,0.83409618,37396.0,37395.0,0.066858]
[1643821597138,0.00060293,37400.0,37399.0,1.16572367]
[1643821597442,0.06686008,37401.0,37399.0,1.16572367]
[1643821597638,0.00060293,37400.0,37399.0,1.16572367]
[1643821598039,0.00018031,37402.0,37400.0,0.45]
[1643821598239,0.40285216,37405.0,37400.0,0.45]
[1643821598240,0.00018031,37404.0,37402.0,0.07812621]
[1643821598482,0.00018031,37404.0,37402.0,0.19857321]
[1643821598882,0.00765784,37405.0,37402.0,0.19857321]
[1643821599483,0.00715784,37405.0,37402.0,0.19857321]
[1643821599683,0.00715784,37405.0,37403.0,0.29934607]
[1643821599887,0.00715784,37405.0,37404.0,1.30250504]
[1643821600089,0.00715784,37405.0,37404.0,0.103435]
[1643821600684,0.00709784,37405.0,37404.0,0.103435]
[1643821600887,0.00703784,37405.0,37404.0,0.1036]
[1643821601085,0.00697784,37405.0,37404.0,0.1036]
[1643821602132,0.00697784,37405.0,37404.0,0.0536]
[1643821602335,0.05697784,37405.0,37404.0,0.0536]
[1643821604135,0.00697784,37405.0,37404.0,0.0536]
[1643821604537,0.05697784,37405.0,37404.0,0.0536]
[1643821605740,0.00697784,37405.0,37404.0,0.0536]
[1643821605988,0.00697784,37405.0,37404.0,0.02794202]
[1643821607692,0.00697784,37405.0,37404.0,0.26231021]
[1643821607893,0.00697784,37405.0,37404.0,0.31213121]
[1643821608091,0.00697784,37405.0,37404.0,0.41213121]
[1643821611236,0.00691784,37405.0,37404.0,0.41213121]
[1643821611436,0.00685784,37405.0,37404.0,0.41213121]
[1643821612037,0.00285784,37405.0,37404.0,1.06213121]
[1643821612437,0.00285784,37405.0,37404.0,0.41213121]
[1643821614086,0.00196176,37405.0,37404.0,1.21213121]
[1643821615088,0.22346683,37406.0,37405.0,1.5]
[1643821615289,0.002,37408.0,37405.0,1.703418]
[1643821615290,0.00218031,37408.0,37405.0,1.703418]
[1643821615490,0.00218031,37408.0,37407.0,0.049735]
[1643821615491,0.00191531,37408.0,37407.0,0.049735]
[1643821615694,0.00191531,37408.0,37407.0,1.803147]
[1643821615893,0.001735,37408.0,37407.0,1.753412]
[1643821616189,0.001735,37408.0,37407.0,1.853412]
[1643821616391,0.007735,37409.0,37408.0,1.93472772]
[1643821616591,0.007735,37409.0,37408.0,2.03813672]
[1643821616789,0.00818133,37409.0,37408.0,2.18813672]
[1643821617240,0.00818133,37409.0,37408.0,2.23787172]
[1643821617441,0.00818133,37409.0,37408.0,2.18813672]
[1643821617740,0.001,37410.0,37409.0,1.65]
[1643821617940,0.001,37410.0,37409.0,1.820223]
[1643821618243,0.00160317,37410.0,37409.0,1.469694]
[1643821618640,0.00160317,37410.0,37409.0,2.139694]
[1643821618840,0.00160317,37410.0,37409.0,2.22574501]
[1643821619140,0.001,37410.0,37409.0,2.22574501]
[1643821619444,0.00286537,37411.0,37410.0,1.65]
[1643821619744,0.18951431,37416.0,37412.0,1.65]
[1643821619943,0.18951431,37416.0,37413.0,0.1702]
[1643821620141,0.18951431,37416.0,37414.0,0.049791]
[1643821620345,0.18951431,37416.0,37415.0,0.0536]
[1643821620543,0.18951431,37416.0,37415.0,2.03449908]
[1643821620742,0.03096365,37417.0,37415.0,2.83207895]
[1643821621007,0.03096365,37417.0,37416.0,2.436588]
[1643821621205,6.365e-05,37417.0,37416.0,2.639923]
[1643821621405,0.0001,37419.0,37417.0,1.65]
[1643821621602,0.00104,37421.0,37420.0,0.049735]
[1643821621802,0.00104,37421.0,37420.0,0.203372]
[1643821622103,0.00098,37421.0,37420.0,0.203372]
[1643821622301,0.00098,37421.0,37420.0,0.253372]
[1643821622504,0.00092,37421.0,37420.0,0.253372]
[1643821623108,0.00092,37421.0,37420.0,0.203372]
[1643821625536,0.000657,37421.0,37420.0,0.203372]
[1643821625736,0.000657,37421.0,37420.0,0.103372]
[1643821628786,0.000657,37421.0,37420.0,0.38711727]
[1643821628981,0.00082209,37421.0,37420.0,0.38711727]
[1643821629180,0.00082209,37421.0,37420.0,0.203372]
[1643821629380,0.00082209,37421.0,37420.0,1.653372]
[1643821629979,0.002,37422.0,37421.0,1.05053521]
[1643821630179,0.00238602,37422.0,37421.0,1.15390421]
[1643821630381,0.00238602,37422.0,37421.0,1.25390421]
[1643821630579,0.00232602,37422.0,37421.0,1.25390421]
[1643821630782,0.00226602,37422.0,37421.0,1.25390421]
[1643821630978,0.00176,37422.0,37421.0,1.25390421]
[1643821631179,0.0017,37422.0,37421.0,1.25390421]
[1643821631384,0.00164,37422.0,37421.0,0.20390421]
[1643821631581,0.00158,37422.0,37421.0,0.10390421]
[1643821631781,0.00152,37422.0,37421.0,0.10390421]
[1643821631980,0.00152,37422.0,37421.0,0.65390421]
[1643821632236,0.01817422,37427.0,37422.0,0.35]
[1643821632437,0.01766202,37427.0,37425.0,0.08626027]
[1643821632638,0.01260202,37427.0,37426.0,0.27143016]
[1643821633040,0.00760202,37427.0,37426.0,0.27143016]
[1643821633240,0.00760202,37427.0,37426.0,0.103355]
[1643821633540,0.00733702,37427.0,37426.0,0.103355]
[1643821634143,0.00733702,37427.0,37426.0,0.34045257]
[1643821634340,0.00733702,37427.0,37426.0,0.44045257]
[1643821634938,0.00703261,37427.0,37426.0,0.44045257]
[1643821635140,0.00703261,37427.0,37426.0,0.203355]
[1643821635342,0.00703261,37427.0,37426.0,0.103355]
[1643821636184,0.42397745,37429.0,37426.0,0.37838307]
[1643821636382,0.42379726,37429.0,37426.0,0.0536]
[1643821636586,0.42379726,37429.0,37427.0,0.1]
[1643821636784,0.42379726,37429.0,37427.0,0.0536]
[1643821636986,0.42379726,37429.0,37428.0,0.0668]
[1643821637188,0.42379726,37429.0,37428.0,0.06187]
[1643821638191,0.42379726,37429.0,37428.0,0.061605]
[1643821638589,0.42379726,37429.0,37428.0,0.061305]
[1643821638990,0.42379726,37429.0,37428.0,0.111054]
[1643821639194,0.42379726,37429.0,37428.0,0.11111651]
[1643821639390,0.42379726,37429.0,37428.0,0.08436651]
[1643821639637,0.42379726,37429.0,37428.0,0.36448081]
[1643821639837,0.42379726,37429.0,37428.0,0.46448081]
[1643821640239,0.00379726,37429.0,37428.0,0.46448081]
[1643821641238,0.00379726,37429.0,37428.0,0.46421281]
[1643821641439,0.00373726,37429.0,37428.0,0.18409851]
[1643821641742,0.00367726,37429.0,37428.0,0.08409851]
[1643821641938,0.00361726,37429.0,37428.0,0.08409851]
[1643821642141,0.00355726,37429.0,37428.0,0.08409851]
[1643821642440,0.00349726,37429.0,37428.0,0.08409851]
[1643821642641,0.00343726,37429.0,37428.0,0.08409851]
[1643821642941,0.00331726,37429.0,37428.0,0.08409851]
[1643821644186,0.00344794,37429.0,37428.0,0.08409851]
[1643821645388,0.00238019,37431.0,37428.0,0.08409851]
[1643821645389,0.0101474,37432.0,37431.0,0.716797]
[1643821645587,0.0101474,37432.0,37431.0,0.766536]
[1643821645788,0.0101474,37432.0,37431.0,0.866536]
[1643821646386,0.0101474,37432.0,37431.0,1.43829946]
[1643821646588,0.0101474,37432.0,37431.0,1.53516022]
[1643821647235,0.0101474,37432.0,37431.0,0.88516022]
[1643821647439,0.0101474,37432.0,37431.0,0.31339676]
[1643821647734,0.0101474,37432.0,37431.0,0.36699676]
[1643821647933,0.0101474,37432.0,37431.0,0.6429236]
[1643821648134,0.0101474,37432.0,37431.0,0.36699676]
[1643821648934,0.00882218,37439.0,37431.0,0.36699676]
[1643821649236,0.00882218,37439.0,37437.0,0.07549533]
[1643821649934,0.00882218,37439.0,37434.0,0.0536]
[1643821650134,0.00882218,37439.0,37432.0,0.1]
[1643821650336,0.00882218,37439.0,37431.0,0.29383044]
[1643821650535,0.22779165,37437.0,37431.0,0.29383044]
[1643821650989,0.27773165,37437.0,37434.0,0.02087319]
[1643821651190,0.39447272,37437.0,37434.0,0.02087319]
[1643821651795,0.26228885,37435.0,37434.0,0.02087319]
[1643821651991,0.16734557,37437.0,37434.0,0.02087319]
[1643821652592,0.16734557,37437.0,37434.0,0.00516606]
[1643821652792,0.16674107,37437.0,37434.0,0.00516606]
[1643821652993,0.01570713,37435.0,37434.0,0.00516606]
[1643821653397,0.24492396,37435.0,37434.0,0.00516606]
[1643821653696,0.06680573,37434.0,37427.0,0.00053387]
[1643821653896,0.06680573,37434.0,37425.0,0.133603]
[1643821654195,0.11680573,37434.0,37427.0,0.00049636]
[1643821654395,0.06680573,37434.0,37429.0,0.09130659]
[1643821654641,0.05,37435.0,37429.0,0.09077359]
[1643821654844,0.00059325,37436.0,37429.0,0.09077359]
[1643821655240,0.46784964,37439.0,37429.0,0.09077359]
[1643821655439,0.28140609,37436.0,37429.0,0.09077359]
[1643821655638,0.28140609,37436.0,37430.0,1.16572367]
[1643821655843,0.05,37435.0,37431.0,0.049734]
[1643821656039,0.05,37435.0,37431.0,0.0668]
[1643821656441,0.00882218,37439.0,37431.0,0.1668]
[1643821656640,0.00882218,37439.0,37432.0,0.049735]
[1643821657139,0.00882218,37439.0,37434.0,0.066791]
[1643821657343,0.23073971,37439.0,37434.0,0.066791]
[1643821657543,0.00882218,37439.0,37434.0,0.066791]
[1643821657842,0.00059486,37438.0,37434.0,0.066791]
[1643821658883,0.00882218,37439.0,37434.0,0.31427534]
[1643821659082,0.00059486,37438.0,37434.0,0.30927534]
[1643821659282,0.00059486,37438.0,37434.0,0.061791]
[1643821660084,0.00882218,37439.0,37434.0,0.061791]
[1643821660286,0.00882218,37439.0,37434.0,0.31271008]
[1643821660287,0.00059486,37438.0,37434.0,0.31271008]
[1643821660485,0.00077502,37438.0,37434.0,0.31271008]
[1643821660685,0.00077502,37438.0,37435.0,0.049725]
[1643821661086,0.00071502,37438.0,37435.0,0.049725]
[1643821661286,0.00018016,37438.0,37434.0,0.061791]
[1643821661488,0.00069588,37438.0,37434.0,0.061791]
[1643821662342,0.00069588,37438.0,37433.0,0.133579]
[1643821662343,0.00012016,37438.0,37433.0,0.133579]
[1643821662546,0.00882218,37439.0,37433.0,0.133579]
[1643821662547,0.24150102,37437.0,37433.0,0.133579]
[1643821662744,0.24150102,37437.0,37431.0,0.1]
[1643821663145,0.24150102,37437.0,37430.0,1.16572367]
[1643821663146,0.31568045,37436.0,37430.0,1.16572367]
[1643821663644,1.03717188,37436.0,37430.0,1.16572367]
[1643821663946,0.24325707,37435.0,37430.0,1.16572367]
[1643821664141,0.2860708,37434.0,37430.0,1.16572367]
[1643821664343,0.3360708,37434.0,37430.0,1.16572367]
[1643821664743,0.20285632,37433.0,37430.0,1.16572367]
[1643821665147,0.26597748,37434.0,37430.0,1.16572367]
[1643821665148,0.26797804,37434.0,37430.0,1.16572367]
[1643821665447,0.00012016,37434.0,37430.0,1.16572367]
[1643821665643,0.29337723,37435.0,37430.0,1.16572367]
[1643821665896,0.05012016,37435.0,37430.0,1.16572367]
[1643821666092,0.05012016,37435.0,37431.0,0.21800539]
[1643821666093,0.00012016,37435.0,37431.0,0.21800539]
[1643821666294,0.00072506,37436.0,37431.0,0.31800539]
[1643821666691,0.00072506,37436.0,37432.0,0.04973]
[1643821666892,0.0006049,37436.0,37431.0,0.31800539]
[1643821667091,0.0006049,37436.0,37432.0,0.049734]
[1643821667291,0.00012016,37437.0,37432.0,0.049734]
[1643821667491,1.60340492,37436.0,37432.0,0.049734]
[1643821667696,1.60313592,37436.0,37431.0,0.31747139]
[1643821667994,1.60313592,37436.0,37431.0,0.38427039]
[1643821668193,0.00012016,37435.0,37432.0,0.049734]
[1643821668796,0.00012016,37435.0,37433.0,0.0536]
[1643821668992,1.60313591,37436.0,37433.0,0.0536]
[1643821669633,1.602531,37436.0,37433.0,0.0536]
[1643821669836,1.60310152,37436.0,37433.0,0.0536]
[1643821670438,1.60310152,37436.0,37434.0,0.29242427]
[1643821670636,1.60283652,37436.0,37434.0,0.066528]
[1643821670937,1.597266,37436.0,37434.0,0.166528]
[1643821671338,1.59738616,37436.0,37434.0,0.166528]
[1643821671740,1.59738616,37436.0,37434.0,0.066528]
[1643821671936,1.59738616,37436.0,37434.0,0.166528]
[1643821672337,1.56844828,37436.0,37434.0,0.066528]
[1643821672741,1.56844828,37436.0,37433.0,0.133577]
[1643821673037,1.56856844,37436.0,37433.0,0.133577]
[1643821673488,1.56905283,37436.0,37433.0,0.133577]
[1643821673689,0.25047946,37434.0,37433.0,0.133577]
[1643821673889,0.05,37434.0,37430.0,1.16572367]
[1643821674090,1.56905283,37436.0,37432.0,0.0668]
[1643821674091,0.00012016,37435.0,37432.0,0.0668]
[1643821674491,0.22351401,37435.0,37432.0,0.0668]
[1643821674691,0.27351401,37435.0,37432.0,0.0668]
[1643821675591,0.05012016,37435.0,37432.0,0.0668]
[1643821675791,0.37513404,37435.0,37432.0,0.0668]
[1643821675991,0.05012016,37435.0,37432.0,0.0668]
[1643821676993,0.00012016,37435.0,37432.0,0.0668]
[1643821677640,1.56905319,37436.0,37435.0,1.16560351]
[1643821678045,1.56844828,37436.0,37435.0,1.26560351]
[1643821683088,1.56344828,37436.0,37435.0,1.26560351]
[1643821684089,1.53844828,37436.0,37435.0,1.26560351]
[1643821685341,1.53844828,37436.0,37435.0,1.26533851]
[1643821685742,1.51837894,37436.0,37435.0,1.26533851]
[1643821686140,1.51837894,37436.0,37435.0,1.31893851]
[1643821686543,1.51837894,37436.0,37435.0,2.03866751]
[1643821686744,1.51837894,37436.0,37435.0,2.31296236]
[1643821689002,1.51837894,37436.0,37435.0,4.06296236]
[1643821689003,0.41102285,37436.0,37435.0,4.06296236]
[1643821689198,0.01042485,37436.0,37435.0,4.63906322]
[1643821689402,0.0088308,37441.0,37435.0,4.63906322]
[1643821689403,0.0091948,37450.0,37439.0,0.05]
[1643821689602,0.0091948,37450.0,37449.0,2.22]
[1643821689903,0.0091948,37450.0,37449.0,1.35430737]
[1643821690297,0.0091348,37450.0,37449.0,1.43016707]
[1643821690499,0.02693341,37459.0,37450.0,1.645]
[1643821690699,0.02693341,37459.0,37451.0,2.1270412]
[1643821690901,0.03580954,37461.0,37452.0,0.103271]
[1643821691104,0.03580954,37461.0,37458.0,0.67]
[1643821691300,0.03580954,37461.0,37459.0,1.21503185]
[1643821691301,0.0285646,37461.0,37459.0,1.21503185]
[1643821691500,0.0285646,37461.0,37460.0,1.14913766]
[1643821691699,0.0235646,37461.0,37460.0,1.24913766]
[1643821691901,0.0185646,37461.0,37460.0,1.24913766]
[1643821692138,0.0185646,37461.0,37460.0,0.203251]
[1643821693236,0.0185646,37461.0,37460.0,0.48321409]
[1643821693837,0.0185646,37461.0,37460.0,0.203251]
[1643821694038,0.0185646,37461.0,37460.0,0.202717]
[1643821694039,0.0182956,37461.0,37460.0,0.202717]
[1643821695040,0.0182956,37461.0,37460.0,0.0536]
[1643821695242,0.0182956,37461.0,37460.0,0.102722]
[1643821695439,0.0003956,37461.0,37460.0,0.102722]
[1643821696094,0.0003956,37461.0,37460.0,0.169459]
[1643821696793,0.0003956,37461.0,37460.0,0.26954072]
[1643821696992,0.0001336,37461.0,37460.0,0.49023884]
[1643821697191,0.0001336,37461.0,37460.0,0.59023884]
[1643821697594,0.0001336,37461.0,37460.0,0.26927572]
[1643821697891,0.0001336,37461.0,37460.0,0.269194]
[1643821698799,0.0001336,37461.0,37460.0,0.169194]
[1643821699200,0.0001336,37461.0,37458.0,0.133476]
[1643821699401,0.0001336,37461.0,37455.0,0.1335]
[1643821699402,0.00031365,37461.0,37455.0,0.1335]
[1643821699644,0.00092597,37461.0,37453.0,0.26139278]
[1643821699840,0.00140261,37462.0,37453.0,0.26139278]
[1643821699841,0.051,37462.0,37453.0,0.26139278]
[1643821700037,0.051,37462.0,37450.0,0.07904616]
[1643821700038,0.31464976,37458.0,37450.0,0.07904616]
[1643821700238,0.36432076,37458.0,37452.0,0.133509]
[1643821700437,0.04994,37458.0,37453.0,0.049141]
[1643821700636,0.04988,37458.0,37453.0,0.049141]
[1643821700836,0.00012007,37459.0,37452.0,0.133509]
[1643821701037,0.00012007,37459.0,37453.0,0.02078592]
[1643821701238,6.007e-05,37459.0,37454.0,0.066756]
[1643821701443,0.00034911,37457.0,37452.0,0.133509]
[1643821701638,0.00028911,37457.0,37453.0,0.04914]
[1643821701939,0.00016911,37457.0,37453.0,0.04914]
[1643821702138,0.00010911,37457.0,37453.0,0.04914]
[1643821702341,0.25216069,37459.0,37453.0,0.04914]
[1643821702342,0.35210069,37459.0,37453.0,0.04914]
[1643821702540,0.2976962,37458.0,37452.0,0.15300536]
[1643821702740,0.79215944,37459.0,37452.0,0.15300536]
[1643821702940,0.79215944,37459.0,37448.0,0.133519]
[1643821703140,0.79209944,37459.0,37448.0,0.133519]
[1643821703412,0.79209951,37459.0,37448.0,0.133519]
[1643821703609,0.06670884,37452.0,37451.0,0.10282642]
[1643821703806,0.4064117,37459.0,37451.0,0.15196942]
[1643821703807,0.04994,37453.0,37451.0,0.15196942]
[1643821704112,6.007e-05,37458.0,37452.0,0.049147]
[1643821704306,6.007e-05,37458.0,37451.0,0.10282642]
[1643821704307,0.00031645,37458.0,37451.0,0.10282642]
[1643821704509,0.00025638,37458.0,37451.0,0.10282642]
[1643821704909,0.06701638,37458.0,37453.0,0.066759]
[1643821705109,0.06707645,37458.0,37453.0,0.066759]
[1643821705310,0.00031645,37458.0,37453.0,0.066759]
[1643821706507,0.00031645,37458.0,37457.0,0.09998522]
[1643821706712,0.00025638,37458.0,37457.0,0.16173922]
[1643821707534,0.00025638,37458.0,37457.0,0.066754]
[1643821707737,0.00025638,37458.0,37455.0,0.133502]
[1643821707935,6.007e-05,37458.0,37455.0,0.133502]
[1643821708135,0.28483763,37461.0,37455.0,0.133502]
[1643821708136,0.06675286,37460.0,37455.0,0.133502]
[1643821708937,0.06675286,37460.0,37450.0,0.133516]
[1643821709135,0.06676183,37457.0,37453.0,0.01923397]
[1643821709341,0.06676183,37457.0,37453.0,0.00667955]
[1643821709736,0.0670129,37457.0,37454.0,6.308e-05]
[1643821710137,0.0669529,37457.0,37454.0,6.308e-05]
[1643821710537,0.0668929,37457.0,37454.0,6.308e-05]
[1643821710736,0.06677353,37457.0,37454.0,6.308e-05]
[1643821711393,0.2472063,37455.0,37454.0,6.308e-05]
[1643821712096,0.06677353,37457.0,37454.0,6.308e-05]
[1643821712293,0.00025107,37457.0,37454.0,6.308e-05]
[1643821712893,0.00025107,37457.0,37455.0,0.23244374]
[1643821713095,0.00025107,37457.0,37455.0,0.29919874]
[1643821713292,0.00025107,37457.0,37455.0,0.066755]
[1643821714094,0.05060647,37461.0,37455.0,0.066755]
[1643821714095,0.04585754,37461.0,37455.0,0.066755]
[1643821714295,0.00026875,37456.0,37455.0,0.32922954]
[1643821714493,0.00026875,37456.0,37455.0,0.37836754]
[1643821716237,0.00026875,37456.0,37455.0,0.11601633]
[1643821717940,0.00026875,37456.0,37455.0,0.21601633]
[1643821718393,0.00026875,37456.0,37455.0,3.13281253]
[1643821718593,0.00126875,37456.0,37455.0,0.66601633]
[1643821718794,0.00126875,37456.0,37455.0,0.11601633]
[1643821718993,0.00082179,37456.0,37455.0,0.11601633]
[1643821719195,0.00082179,37456.0,37455.0,0.21601633]
[1643821719395,0.00082179,37456.0,37455.0,1.43708261]
[1643821719595,0.00105502,37456.0,37455.0,0.48695928]
[1643821719799,0.00105502,37456.0,37455.0,0.38695928]
[1643821720197,0.00105502,37456.0,37455.0,1.19191062]
[1643821720397,5.502e-05,37456.0,37455.0,2.32324928]
[1643821720599,0.001,37462.0,37455.0,2.32324928]
[1643821720600,0.00018007,37461.0,37456.0,1.65]
[1643821720796,0.00018007,37461.0,37457.0,0.20273]
[1643821720797,0.00078625,37461.0,37457.0,0.20273]
[1643821720997,0.00078625,37461.0,37458.0,0.12355125]
[1643821721197,0.00078625,37461.0,37459.0,0.169458]
[1643821721401,0.00078625,37461.0,37460.0,1.699123]
[1643821721599,0.001,37462.0,37460.0,1.752723]
[1643821721797,0.001,37462.0,37461.0,1.79912]
[1643821721996,0.001,37462.0,37461.0,1.85272]
[1643821722241,0.001,37462.0,37461.0,2.33328612]
[1643821722843,0.001,37462.0,37461.0,2.23328612]
[1643821723248,0.02055981,37475.0,37464.0,0.066721]
[1643821723446,0.40539156,37479.0,37464.0,0.066721]
[1643821723447,0.001,37483.0,37473.0,1.4]
[1643821723747,0.001,37483.0,37472.0,0.28298191]
[1643821723748,0.27337592,37483.0,37474.0,0.1536]
[1643821723943,0.00118039,37483.0,37475.0,0.0536]
[1643821724344,0.00044382,37480.0,37476.0,0.08300165]
[1643821724545,0.41408721,37484.0,37477.0,0.0536]
[1643821724743,0.001,37484.0,37477.0,0.0536]
[1643821725545,0.200699,37483.0,37477.0,0.0536]
[1643821725749,0.001,37484.0,37477.0,0.0536]
[1643821726589,0.001,37484.0,37477.0,0.28761644]
[1643821726886,0.001,37484.0,37477.0,0.38761644]
[1643821727084,0.001,37484.0,37477.0,0.1536]
[1643821727887,0.001,37484.0,37477.0,0.0536]
[1643821728087,0.001,37484.0,37477.0,0.1536]
[1643821728985,0.001,37484.0,37482.0,0.07823772]
[1643821729185,0.001,37484.0,37483.0,0.0667]
[1643821729386,0.001,37484.0,37480.0,0.0992215]
[1643821729647,0.00019839,37483.0,37480.0,0.0992215]
[1643821730249,0.00019839,37483.0,37481.0,0.34052803]
[1643821730450,0.00080642,37483.0,37481.0,0.34052803]
[1643821730649,0.00080642,37483.0,37482.0,2.99511869]
[1643821730848,0.00080642,37483.0,37482.0,2.71628507]
[1643821731049,0.00080642,37483.0,37482.0,3.38628507]
[1643821731251,0.00013839,37483.0,37482.0,4.28628507]
[1643821731454,0.001,37486.0,37484.0,1.65]
[1643821731650,0.00094,37486.0,37485.0,2.506949]
[1643821731852,0.00088,37486.0,37485.0,0.956949]
[1643821732048,0.00082,37486.0,37485.0,0.956949]
[1643821732249,0.00076,37486.0,37485.0,0.956949]
[1643821732450,0.0007,37486.0,37485.0,1.376949]
[1643821732656,0.00064,37486.0,37485.0,1.376949]
[1643821732951,0.00058,37486.0,37485.0,2.126949]
[1643821733150,0.00052,37486.0,37485.0,2.126949]
[1643821733399,0.00046,37486.0,37485.0,1.64782464]
[1643821733595,0.0004,37486.0,37485.0,1.46005047]
[1643821733797,0.00034,37486.0,37485.0,1.376949]
[1643821733994,0.00028,37486.0,37485.0,1.376949]
[1643821734196,0.00022,37486.0,37485.0,1.376949]
[1643821734396,0.00016,37486.0,37485.0,1.376949]
[1643821734598,0.0001,37486.0,37485.0,1.376949]
[1643821734796,4e-05,37486.0,37485.0,1.376949]
[1643821734996,0.00040094,37487.0,37486.0,1.05]
[1643821735200,0.00034094,37487.0,37486.0,1.2036]
[1643821735397,0.00028094,37487.0,37486.0,0.1536]
[1643821735597,0.00022094,37487.0,37486.0,0.1536]
[1643821735898,0.32585881,37491.0,37486.0,0.1536]
[1643821736096,0.2745872,37495.0,37486.0,0.1536]
[1643821736296,0.3245872,37495.0,37487.0,0.1]
[1643821736497,0.31237292,37488.0,37487.0,0.1]
[1643821736698,0.31237292,37488.0,37487.0,0.0536]
[1643821736699,0.59911258,37488.0,37487.0,0.0536]
[1643821736896,0.31237292,37488.0,37487.0,0.0536]
[1643821737347,0.31237292,37488.0,37485.0,0.553349]
[1643821737543,0.31237292,37488.0,37485.0,0.133349]
[1643821738344,0.30552137,37487.0,37485.0,0.133349]
[1643821738544,0.24223951,37486.0,37485.0,0.133349]
[1643821738743,0.05,37487.0,37485.0,0.133349]
[1643821738945,0.2956859,37487.0,37485.0,0.133349]
[1643821739145,0.65,37486.0,37485.0,0.133349]
[1643821739346,0.05,37487.0,37484.0,0.133349]
[1643821740147,0.05,37487.0,37481.0,0.25370905]
[1643821740352,0.2684522,37482.0,37481.0,0.25370905]
[1643821740548,0.2684522,37482.0,37480.0,0.133408]
[1643821740749,0.00018033,37485.0,37480.0,0.133408]
[1643821741015,0.12317056,37497.0,37478.0,0.40162582]
[1643821741016,0.2228297,37507.0,37482.0,1.65]
[1643821741308,0.00044169,37489.0,37486.0,0.1]
[1643821741505,0.00176637,37497.0,37487.0,2.10516982]
[1643821741707,0.97305494,37506.0,37487.0,2.10516982]
[1643821741708,1.04872488,37506.0,37505.0,0.22960487]
[1643821741909,1.04872488,37506.0,37505.0,0.7236]
[1643821741910,0.97299494,37506.0,37505.0,0.7236]
[1643821742305,0.8,37506.0,37505.0,0.7236]
[1643821742504,0.79994,37506.0,37505.0,0.7236]
[1643821742705,0.79488,37506.0,37505.0,0.7236]
[1643821742909,0.79482,37506.0,37505.0,0.95794562]
[1643821743106,0.79476,37506.0,37505.0,0.95794562]
[1643821743505,0.7947,37506.0,37505.0,0.7236]
[1643821743705,0.7947,37506.0,37505.0,0.856912]
[1643821744106,0.7947,37506.0,37505.0,0.956912]